Cogmind - Beta 16 @@@ ROGUE MODE // 2025.10.30 @ 10:12:27 Player: welikiq Result: Destroyed by G-47 Trooper with Particle Gun Performance ------------- Evolutions (0) 0 Regions Visited (1) 200 Robots Destroyed (16) 80 Value Destroyed (334) 334 Prototype IDs (0) 0 Alien Tech Used (0) 0 Bonus (0) 0 TOTAL SCORE: 614 Bonus ------- None Cogmind --------- Core Integrity 0/250 Matter 251/300 Energy 125/125 System Corruption 0% Temperature Cool (15) Movement Treading (160) Location -10/Materials Parts ------- > --- POWER (1) -------- Light Ion Engine > --- PROPULSION (2) --- Light Treads > --- UTILITY (2) ------ Heat Sink Small Storage Unit > --- WEAPON (2) ------- Light Assault Rifle > --- INVENTORY (8) ---- Ion Engine Ion Engine Light Treads Light Treads Light Treads Light Treads Mining Laser Peak State ------------ > --- POWER ------------ Ion Engine > --- PROPULSION ------- Light Treads Light Treads > --- UTILITY ---------- Small Storage Unit Seismic Detector > --- WEAPON ----------- Small Laser Assault Rifle > --- INVENTORY -------- Aluminum Leg Aluminum Leg Improved Terrain Scanner Light Assault Rifle Mining Laser [Rating: 7] Favorites ----------- Power Ion Engine Engine Ion Engine Propulsion Light Treads Treads Light Treads Leg Aluminum Leg Utility Small Storage Unit Device Seismic Detector Storage Small Storage Unit Weapon Assault Rifle Energy Gun Small Laser Ballistic Gun Assault Rifle Build | -11 -10 ------- Run | Yrd Mat Slots Evolved . | . . Power . | . . Propulsion . | . . Utility . | . . Weapon . | . . Parts Attached 19 | 10 9 Power 3 | 1 2 Engine 3 | 1 2 Core . | . . Reactor . | . . Propulsion 7 | 4 3 Treads 5 | 2 3 Leg 2 | 2 . Wheel . | . . Hover . | . . Flight . | . . Utility 3 | 2 1 Device 2 | 1 1 Storage 1 | 1 . Processor . | . . Hackware . | . . Protection . | . . Artifact . | . . Weapon 6 | 3 3 Energy Gun 3 | 1 2 Energy Cannon . | . . Ballistic Gun 3 | 2 1 Ballistic Cannon . | . . Launcher . | . . Special Weapon . | . . Impact Weapon . | . . Slashing Weapon . | . . Piercing Weapon . | . . Special Melee Weapon . | . . Unidentified Prototypes . | . . Parts Lost 6 | . 6 Power . | . . Propulsion 2 | . 2 Utility 1 | . 1 Weapon 3 | . 3 Highest Loss Streak 5 | . 5 To Critical Strikes . | . . Average Backups 6 | 2 7 Power . | . . Propulsion 4 | . 5 Utility . | . . Weapon 1 | 1 1 Tool/Special . | . . Unused Backups 8 | . 8 Power 1 | . 1 Propulsion 4 | . 4 Utility 1 | . 1 Weapon 2 | . 2 Tool/Special . | . . Average Slot Usage (%) 95 | . 95 Engine 14 | . 14 Treads 27 | . 27 Device 11 | . 11 Storage 14 | . 14 Energy Gun 13 | . 13 Ballistic Gun 13 | . 13 Peak Build Rating 7 | 7 7 Average Rating 6 | 5 6 On Entrance 3 | . 7 Avg Prop Armor Cover (%) 8 | 8 . Naked Turns . | . . Heaviest Build 15 | 14 15 Greatest Support 40 | 40 40 Greatest Overweight (x) . | . . Average Overweight (x) . | . . Largest Inventory Capacity 8 | 8 8 Average Capacity 7 | 7 8 Most Carried 8 | 5 8 Average Carried 6 | 2 7 Final Capacity 8 | 8 8 Final Carried 7 | 5 7 Class Distribution -------------------- 100% | Mutant Dominant Class ---------------- Mutant | -10/Materials Resources | -11 -10 ----------- Run | Yrd Mat Matter Collected 512 | 367 145 Remotely . | . . Salvage Created 583 | 250 333 Parts 42 | 20 22 Haulers Intercepted . | . . Recyclers Shooed . | . . Parts Field Recycled . | . . Retrieved Matter . | . . Parts Self-Destructed . | . . Prevented . | . . Parts Restored . | . . Kills | -11 -10 ------- Run | Yrd Mat Combat Hostiles Destroyed 8 | . 8 Guns 8 | . 8 Classes Destroyed 4 | 3 1 Worker 1 | 1 . Tunneler 6 | 6 . Recycler 1 | 1 . Grunt 8 | . 8 Best Kill Streak 3 | 3 2 Combat Bots Only 2 | . 2 Max Kills in Single Turn 1 | 1 1 Gunslinging . | . . Exploded . | . . Melee . | . . Uniques/NPCs Destroyed . | . . Combat | -11 -10 -------- Run | Yrd Mat Hostile Shots Fired 108 | . 108 Missed 24 | . 24 Hits 84 | . 84 Projectile 84 | . 84 Critical Strikes 2 | . 2 Damage Taken 1034 | . 1034 Core 258 | . 258 Absorbed by Shields . | . . Core Remaining (%) 100 | 100 . Volleys Fired 69 | 19 50 Largest 2 | 2 2 Hottest 60 | 60 60 Shots Fired 126 | 38 88 Gun 126 | 38 88 Cannon . | . . Launcher . | . . Special . | . . Kinetic 65 | 19 46 Thermal 39 | 19 20 Explosive . | . . Electromagnetic 22 | . 22 Robot Hit Streak 13 | 13 9 Robot Miss Streak 3 | 1 3 Penetration Max . | . . Secondary Targets 1 | . 1 Max Gunslinging Chain 1 | . 1 Shots Hit Robots 85 | 30 55 Core Hits 29 | 9 20 Critical Kills . | . . Critical Parts Destroyed 1 | . 1 Critical Strikes 1 | . 1 Destroy 1 | . 1 Melee Attacks . | . . Impact . | . . Slashing . | . . Piercing . | . . Sneak Attacks . | . . Combat Hostiles . | . . Follow-up Attacks . | . . Damage Inflicted 1024 | 358 666 Guns 1024 | 358 666 Cannons . | . . Explosions . | . . Melee . | . . Ramming . | . . Kinetic 631 | 179 452 Thermal 287 | 179 108 Explosive . | . . Electromagnetic 106 | . 106 Impact . | . . Slashing . | . . Piercing . | . . Highest Corruption . | . . Average Corruption . | . . Corruption Purged . | . . Corruption Blocked . | . . Overload Shots . | . . Overflow Damage . | . . Projectiles . | . . Explosions . | . . Melee . | . . Knockbacks . | . . Impact . | . . Kinetic . | . . Secondary . | . . Self-Inflicted Damage . | . . Shots . | . . Rammed . | . . Targets Rammed . | . . Kicked . | . . Crushed . | . . Highest Temperature 42 | . 42 Average Temperature 15 | . 15 Received Heat Transfer 612 | . 612 Siege Activations . | . . Martial Activations . | . . Shielding Activations . | . . Robots Disrupted . | . . Combat Hostiles . | . . Robots Corrupted . | . . Combat Hostiles . | . . Parts Fried . | . . Impact Corruptions . | . . Robots Melted . | . . Combat Hostiles . | . . Parts Melted . | . . Heat Transferred 650 | 400 250 Parts Sabotaged . | . . Parts Stolen . | . . Parts Stripped . | . . Power Chain Reactions . | . . Alert | -11 -10 ------- Run | Yrd Mat Maximum Alert Level . | . . Low Security (%) 100 | 100 100 Level 1 . | . . Level 2 . | . . Level 3 . | . . Level 4 . | . . Level 5 . | . . High Security . | . . Max Security . | . . Peak Influence 54 | 10 54 Initial . | . . Average 6 | . 9 Influence Increases 230 | 40 190 Destroy 0b10 Robot/C 160 | . 160 Destroy 0b10 Robot/NC 40 | 40 . Destroy Leader 30 | . 30 Influence Decreases 230 | 40 190 Time Decay 170 | 40 130 Lost Part 60 | . 60 Squads Dispatched 3 | . 3 Investigation 1 | . 1 Extermination . | . . Reinforcement 2 | . 2 Assault . | . . Garrison . | . . Intercept . | . . Searches Triggered . | . . Construction Impeded . | . . Haulers Reinforced . | . . Active Scanning Responses . | . . Cargo Convoy Interrupts . | . . Stealth | -11 -10 --------- Run | Yrd Mat Distress Signals 2 | . 2 Communications Jammed . | . . Distress Signals . | . . Times Spotted 18 | . 18 Peak Tracking Total 7 | . 7 Tactical Retreats . | . . Traps | -11 -10 ------- Run | Yrd Mat Traps Triggered 1 | . 1 Indirectly . | . . Trap Hack Attempts . | . . Triggered . | . . Disarmed . | . . Reprogrammed . | . . Reused . | . . Traps Extracted . | . . Installed . | . . Triggered . | . . Machines | -11 -10 ---------- Run | Yrd Mat Machines Disabled . | . . Max in Single Turn . | . . Machines Repaired . | . . Machines Dismantled . | . . Machines Sabotaged . | . . Overloaded Fab Kills . | . . Hacking | -11 -10 --------- Run | Yrd Mat Machines Accessed . | . . Terminals . | . . Fabricators . | . . Repair Stations . | . . Recycling Units . | . . Scanalyzers . | . . Garrison Access . | . . Total Hacks . | . . Successful . | . . Failed . | . . Catastrophic . | . . Database Lockouts . | . . Manual . | . . Terminals . | . . Fabricators . | . . Repair Stations . | . . Recycling Units . | . . Scanalyzers . | . . Garrison Access . | . . Terminal Hacks . | . . Fabricator Hacks . | . . Repair Station Hacks . | . . Recycling Unit Hacks . | . . Scanalyzer . | . . Garrison Access Hacks . | . . Unauthorized Hacks . | . . Terminals . | . . Fabricators . | . . Repair Stations . | . . Recycling Units . | . . Scanalyzers . | . . Garrison Access . | . . Data Cores Recovered . | . . Used . | . . Hacking Detections . | . . Full Trace Events . | . . Feedback Events . | . . Feedback Blocked . | . . Robot Schematics Acquired . | . . Robots Built . | . . Authchips . | . . Time . | . . Total Robot Build Rating . | . . Part Schematics Acquired . | . . Parts Built . | . . Authchips . | . . Time . | . . Total Part Build Rating . | . . Part Studies Acquired . | . . Parts Repaired . | . . Time . | . . Parts Recycled . | . . Recycled Matter . | . . Retrieved Matter . | . . Retrieved Components . | . . Parts Scanalyzed . | . . Part Schematics Acquired . | . . Parts Damaged . | . . Bothacking | -11 -10 ------------ Run | Yrd Mat Used RIF Installer . | . . Robots Hacked . | . . Non-combat . | . . Combat . | . . Robot Hacks Applied . | . . Relay Couplers Released . | . . Fabnet Peak Effective % . | . . Robots Rewired . | . . Allies Hacked . | . . Hacks Repelled . | . . Allies | -11 -10 -------- Run | Yrd Mat Total Allies . | . . Largest Group . | . . Highest-Rated Group . | . . Highest-Rated Ally . | . . Total Orders . | . . Ally Attacks . | . . Total Damage . | . . Kills . | . . Allies Corrupted . | . . Allies Melted . | . . Intel | -11 -10 ------- Run | Yrd Mat Active Infowar (turns) 625 | 56 569 Seismic 625 | 56 569 Robot Analysis Total . | . . Derelict Logs Recovered . | . . Drone Launches . | . . Drone Recoveries . | . . Exploration | -11 -10 ------------- Run | Yrd Mat Turns Passed 1220 | 390 830 Spaces Moved 496 | 203 293 Core 4 | 4 . Treads 475 | 182 293 Legs 17 | 17 . Wheels . | . . Hover . | . . Flight . | . . Fastest Speed 50 | 50 160 Average Speed 157 | 154 160 Slowest Speed 160 | 160 160 Overloaded Moves . | . . Propulsion Burnouts . | . . Robots Hopped . | . . Potential Cave-ins . | . . Cave-ins Triggered . | . . Exploration Rate (%) 25 | 9 41 Regions Visited 1 Branch Regions . Pre-discovered Areas . | . . Known Exits Taken . | . . Unknown Exits Taken 1 | 1 . Scrap Searched . | . . Spaces Dug . | . . Terrain Destroyed . | . . Melee . | . . Projectile . | . . AOE . | . . Terrain Rammed . | . . Walls Destroyed . | . . Machines Disabled . | . . Actions | -11 -10 --------- Run | Yrd Mat Total 805 | 236 569 Wait 196 | . 196 Move 495 | 202 293 Hop . | . . Pick Up 15 | 4 11 Fast Attach 9 | 7 2 Attach 2 | . 2 Detach . | . . Swap 9 | 4 5 Drop 10 | . 10 Fire 69 | 19 50 Melee . | . . Ram . | . . Kick . | . . Crush . | . . Escape Stasis . | . . Rewire . | . . Trap . | . . Miscellaneous . | . . Route ------- -11/Scrapyard -10/Materials (discovered 1 exit: [*Min]) History --------- Turn | Location | Event 3 | -11/Scrapyard | Discovered new exit (range 16) 391 | -11/Scrapyard | Entered Materials 392 | -10/Materials | Build established: Mutant 853 | -10/Materials | Discovered new exit (range 16) 1193 | -10/Materials | Core integrity fell below 50% 1211 | -10/Materials | Core integrity fell below 20% 1221 | -10/Materials | Destroyed by G-47 Trooper with Particle Gun Last Messages --------------- 01182_ G-47 Trooper destroyed. 01182_ U-05 Engineer repairs door. 01183_ Acquired 48 matter. 01184_ K-01 Serf destroyed. 01184_ K-01 Serf collects debris. 01185_ Acquired Sml. Laser. 01188_ K-01 Serf collects debris. 01190_ G-34 Mercenary destroyed. 01190_ Switching to secondary target: G-34 Mercenary. 01191_ U-05 Engineer destroyed. 01194_ K-01 Serf collects debris. 01196_ Assault Rifle destroyed. 01197_ K-01 Serf cleans the Purification Channel. 01204_ Lgt. Treads destroyed. 01208_ K-01 Serf collects debris. 01214_ Acquired Lgt. Assault Rifle. 01215_ Critical hit (Burn: +37). 01217_ Lgt. Treads destroyed. 01217_ K-01 Serf collects debris. 01220_ Sml. Laser destroyed. Map ----- +----------------------------------------------------+ | # """ # """ ##?????? | | # """ # """ #?????? | | # """ + """ #?????? | | # "" # "" #?????? | | # """ # """ #?????? | | # "" ### "" #?????? | | # """ #?# """ #?????? | | # " #?# " #?????? | | ? #?# #?????? | | ########?# #?????? | | ########## " #?????? | | # # """ #?????? | | # "# """ ###### | | #| T# """ ^ ? | | # "# "" ^ ^ ?? | | # + """ ? | | # ! """ # "" """ | | # """ # """ """"" | | # """ # " """"" | | # # """"" ? | | ####/##### """ ?? | | # g # " ? | | # # """ | | # gg #= """ | | # =[! =!#=! """ | | # =@! %%g%= "" ######## | | # [[ k#! """ #????# | | # # "" ###### | | # # """ % + | | # # " ###### | | ########## #????# | | ?????????# #????# | | ?????????####### ##????# | | ???????????????# #?????# | | ??????########## #?????# | | ??????# # #?????### | | ??????# # #######?? | | ??????# # # #?? | | ??????# = # # #?? | | ??????# + + " #?? | | ??????# # # """ #?? | | ??????# # # "" #?? | | ??????# # # """ #?? | | ??????# # + "" #?? | | ??????########## # """ #?? | | ???????????????# # """ #?? | | ???????????????# # """ #?? | | ???????????????##### " #?? | | ???????????????????# #?? | | ???????????????????#######?? | +----------------------------------------------------+ Best States ------------- Heat Dissipation 35 Energy Generation 10 Energy Capacity 250 Matter Stores 300 Matter Capacity 300 Sight Range 16 Terrain Scan Density 10 Evasion (%) 50 Recoil Reduction 2 Item Schematics ----------------- None Robot Schematics ------------------ None Fabricated ------------ Nothing Repaired ---------- Nothing Studied --------- None Alien Tech Used ----------------- None Achievements -------------- None Challenges ------------ None Game ------ Seed NavigationIntegratedStreamer Manual? 0 Play Time 00:09:50 Cumulative 16.9 hours Start 2025.10.30 @ 10:01:07 End 2025.10.30 @ 10:12:27 Sessions 1 Manual Loads 0 Difficulty Rogue Special Mode None Game No. 38 Rogue 38 Adventurer 0 Explorer 0 Win Type - Total 0 Types 0/0/0/0/0/0/0/0/0/0 Lore% 3 Gallery% 15 Achievement% 12 Wizard Run 0 Options --------- Layout 0 ASCII 0 Keyboard 0 Movement Numpad Keybinds 0 Fullscreen 1 Font 24/Smallcaps Map View 38x25 Zoom Use 73% Tactical HUD 1 Map Filters NONE Filters NONE Steam 1 RUN: fe32d114-07c0-4507-8d59-3f4b82245971